[Event "Chess Festival Groningen 2023 | A"]
[Site "Groningen, Netherlands"]
[Date "2023.12.21"]
[Round "1.11"]
[White "Bulmaga, Irina"]
[Black "Kanyamarala, Trisha"]
[Result "1-0"]
[TimeControl "90min/40moves + 30min + 30sec/move"]
[WhiteElo "2439"]
[BlackElo "2184"]

1. e4 {[%clk 01:30:55]} {[%emt 00:00:48]} c5 {[%clk 01:30:39]} 2. c3 {[%clk
01:31:16]} Nf6 {[%clk 01:29:40]} {[%emt 00:01:17]} 3. e5 {[%clk 01:31:36]}
{[%emt 00:00:28]} Nd5 {[%clk 01:30:03]} 4. Bc4 {[%clk 01:31:37]} {[%emt
00:00:52]} Nb6 {[%clk 01:29:28]} {[%emt 00:00:30]} 5. Bb3 {[%clk 01:31:58]}
{[%emt 00:00:39]} c4 {[%clk 01:28:16]} {[%emt 00:01:14]} 6. Bc2 {[%clk
01:32:20]} {[%emt 00:00:05]} Nc6 {[%clk 01:27:51]} {[%emt 00:01:12]} 7. Nf3
{[%clk 01:32:31]} {[%emt 00:00:05]} d5 {[%clk 01:25:48]} {[%emt 00:02:51]} 8.
exd6 {[%clk 01:32:29]} {[%emt 00:00:14]} Qxd6 {[%clk 01:24:37]} {[%emt
00:01:37]} 9. O-O {[%clk 01:32:47]} {[%emt 00:00:30]} Bg4 {[%clk 01:17:55]}
{[%emt 00:07:34]} 10. Re1 {[%clk 01:33:02]} e6 {[%clk 01:14:24]} {[%emt
00:03:37]} 11. b3 {[%clk 01:30:55]} {[%emt 00:02:39]} Be7 {[%clk 01:02:00]}
{[%emt 00:12:51]} 12. Na3 {[%clk 01:25:53]} {[%emt 00:05:40]} Ne5 {[%clk
00:51:09]} {[%emt 00:11:34]} 13. Rxe5 {[%clk 01:12:32]} {[%emt 00:13:30]} Bxf3
{[%clk 00:49:33]} {[%emt 00:02:16]} 14. Qe1 {[%clk 01:12:48]} {[%emt 00:00:29]}
Bd5 {[%clk 00:39:44]} {[%emt 00:09:53]} 15. bxc4 {[%clk 01:11:44]} {[%emt
00:02:08]} Nxc4 {[%clk 00:38:24]} {[%emt 00:01:37]} 16. Ba4+ {[%clk 01:11:18]}
{[%emt 00:00:35]} Kf8 {[%clk 00:38:30]} {[%emt 00:00:36]} 17. Nxc4 {[%clk
01:11:12]} {[%emt 00:00:27]} Bxc4 {[%clk 00:38:54]} {[%emt 00:00:15]} 18. d4
{[%clk 01:07:26]} {[%emt 00:04:05]} f6 {[%clk 00:36:54]} {[%emt 00:02:29]} 19.
Re3 {[%clk 00:51:58]} {[%emt 00:16:04]} Kf7 {[%clk 00:34:56]} {[%emt 00:02:25]}
20. Bc2 {[%clk 00:48:13]} {[%emt 00:04:14]} Rac8 {[%clk 00:28:57]} {[%emt
00:06:49]} 21. a4 {[%clk 00:40:20]} {[%emt 00:08:06]} Qd7 {[%clk 00:24:57]}
{[%emt 00:04:39]} 22. Rh3 {[%clk 00:38:09]} {[%emt 00:02:27]} g6 {[%clk
00:21:47]} {[%emt 00:03:39]} 23. Rb1 {[%clk 00:34:22]} {[%emt 00:05:03]} b6
{[%clk 00:19:01]} {[%emt 00:02:32]} 24. Bd2 {[%clk 00:32:20]} {[%emt 00:02:29]}
h5 {[%clk 00:14:54]} {[%emt 00:04:37]} 25. Re3 {[%clk 00:21:33]} {[%emt
00:11:17]} f5 {[%clk 00:13:10]} {[%emt 00:02:14]} 26. f4 {[%clk 00:15:22]}
{[%emt 00:07:19]} Bd6 27. Qf2 {[%emt 00:02:49]} Qc7 {[%clk 00:10:46]} {[%emt
00:00:27]} 28. Rh3 {[%emt 00:03:50]} Rcg8 {[%emt 00:00:09]} 29. Re1 {[%clk
00:14:09]} Qc6 {[%clk 00:08:00]} {[%emt 00:02:00]} 30. Rhe3 {[%clk 00:13:04]}
{[%emt 00:02:15]} Qc7 {[%clk 00:05:09]} {[%emt 00:03:14]} 31. Bd3 {[%clk
00:12:44]} {[%emt 00:00:16]} Bxf4 {[%clk 00:01:48]} {[%emt 00:04:18]} 32. Bxc4
{[%clk 00:09:48]} {[%emt 00:03:00]} Bxe3 {[%clk 00:02:12]} {[%emt 00:00:17]} 33.
Bxe6+ {[%clk 00:10:06]} {[%emt 00:00:23]} Kxe6 {[%clk 00:02:33]} 34. Qxe3+
{[%clk 00:10:09]} {[%emt 00:00:14]} Kf7 {[%clk 00:02:19]} {[%emt 00:00:44]} 35.
Qe6+ {[%clk 00:10:36]} {[%emt 00:00:08]} Kg7 {[%clk 00:02:26]} {[%emt
00:00:18]} 36. Bg5 {[%clk 00:10:25]} {[%emt 00:00:42]} Rf8 {[%clk 00:00:36]}
{[%emt 00:02:19]} 37. Be7 {[%clk 00:09:42]} {[%emt 00:01:13]} Re8 {[%emt
00:00:44]} 38. h4 {[%clk 00:07:02]} {[%emt 00:03:01]} Qxc3 {[%clk 00:00:34]}
{[%emt 00:00:29]} 39. Bf6+ {[%clk 00:07:12]} {[%emt 00:00:40]} Kh6 {[%clk
00:00:57]} {[%emt 00:00:13]} 40. Bg5+ {[%clk 00:07:36]} Kg7 {[%clk 00:01:15]}
41. Qd7+ {[%clk 00:07:55]} {[%emt 00:00:04]} 1-0

[Event "Chess Festival Groningen 2023 | A"]
[Site "Groningen, Netherlands"]
[Date "2023.12.21"]
[Round "1.12"]
[White "Kumar, Prajit Sai"]
[Black "Lahaye, Rick"]
[Result "1-0"]
[TimeControl "90min/40moves + 30min + 30sec/move"]
[WhiteElo "2172"]
[BlackElo "2439"]

1. e4 {[%clk 01:29:22]} {[%emt 00:01:36]} c5 {[%clk 01:30:52]} {[%emt
00:00:28]} 2. Nf3 {[%clk 01:29:30]} {[%emt 00:00:14]} d6 {[%clk 01:31:15]} 3.
d4 {[%clk 01:29:41]} {[%emt 00:00:14]} cxd4 {[%clk 01:31:39]} {[%emt 00:00:14]}
4. Nxd4 {[%clk 01:30:05]} Nf6 {[%clk 01:31:56]} {[%emt 00:00:21]} 5. Nc3 {[%clk
01:30:26]} {[%emt 00:00:19]} a6 {[%clk 01:30:54]} {[%emt 00:01:13]} 6. f3
{[%clk 01:30:04]} {[%emt 00:00:52]} e5 {[%clk 01:31:05]} {[%emt 00:00:20]} 7.
Nb3 {[%clk 01:30:26]} {[%emt 00:00:37]} Be6 {[%clk 01:31:28]} 8. Be3 {[%clk
01:30:36]} h5 {[%clk 01:31:51]} {[%emt 00:00:08]} 9. Qd2 {[%clk 01:28:03]}
{[%emt 00:03:05]} Nbd7 {[%clk 01:32:04]} {[%emt 00:00:15]} 10. Be2 {[%clk
01:24:26]} {[%emt 00:04:06]} Qc7 {[%clk 01:25:55]} {[%emt 00:06:36]} 11. O-O-O
{[%clk 01:13:29]} {[%emt 00:11:27]} Be7 {[%clk 01:26:08]} {[%emt 00:00:16]} 12.
Kb1 {[%clk 01:05:20]} {[%emt 00:08:39]} Rc8 {[%clk 01:11:43]} {[%emt 00:14:55]}
13. h3 {[%clk 00:55:18]} {[%emt 00:10:31]} h4 {[%clk 01:12:06]} {[%emt
00:00:13]} 14. f4 {[%clk 00:51:39]} {[%emt 00:04:03]} b5 {[%clk 01:06:58]}
{[%emt 00:05:42]} 15. Bf3 {[%clk 00:40:07]} {[%emt 00:11:59]} b4 {[%clk
00:55:14]} {[%emt 00:12:14]} 16. Ne2 {[%clk 00:38:28]} {[%emt 00:02:08]} a5
{[%clk 00:55:10]} {[%emt 00:00:37]} 17. f5 {[%clk 00:35:14]} {[%emt 00:03:42]}
Bc4 {[%clk 00:53:44]} {[%emt 00:01:55]} 18. g4 {[%clk 00:29:47]} {[%emt
00:05:58]} hxg3 {[%clk 00:50:00]} {[%emt 00:04:18]} 19. Nxg3 {[%clk 00:30:00]}
{[%emt 00:00:12]} Ba6 {[%clk 00:43:30]} {[%emt 00:07:02]} 20. Nc1 {[%clk
00:27:36]} {[%emt 00:02:52]} Bb7 {[%clk 00:41:17]} {[%emt 00:02:42]} 21. h4
{[%clk 00:23:56]} {[%emt 00:04:10]} Nc5 {[%clk 00:38:42]} {[%emt 00:03:22]} 22.
Qg2 {[%clk 00:23:17]} {[%emt 00:01:06]} a4 {[%clk 00:37:32]} {[%emt 00:01:27]}
23. b3 {[%clk 00:18:48]} {[%emt 00:05:00]} Ba6 {[%clk 00:30:08]} {[%emt
00:08:06]} 24. h5 {[%clk 00:17:29]} {[%emt 00:01:37]} a3 {[%clk 00:27:42]}
{[%emt 00:03:24]} 25. Qd2 {[%clk 00:16:50]} {[%emt 00:00:38]} Bb7 {[%clk
00:26:34]} {[%emt 00:01:39]} 26. Qg2 {[%clk 00:10:13]} {[%emt 00:07:06]} Qc6
{[%clk 00:10:53]} {[%emt 00:16:36]} 27. Rh4 {[%clk 00:05:53]} {[%emt 00:05:05]}
Bd8 {[%clk 00:06:47]} {[%emt 00:03:56]} 28. Qd2 {[%clk 00:05:39]} {[%emt
00:00:47]} Ncd7 {[%clk 00:06:58]} {[%emt 00:00:16]} 29. Nd3 {[%clk 00:05:10]}
{[%emt 00:00:59]} Ba5 {[%clk 00:07:17]} {[%emt 00:00:19]} 30. Nf2 {[%clk
00:04:09]} {[%emt 00:01:26]} Bb6 {[%clk 00:06:49]} {[%emt 00:00:55]} 31. Bxb6
{[%clk 00:03:46]} {[%emt 00:00:55]} Nxb6 {[%clk 00:04:45]} {[%emt 00:02:35]} 32.
Nd3 {[%clk 00:03:55]} {[%emt 00:00:21]} Qc3 {[%clk 00:04:52]} {[%emt 00:00:23]}
33. Qxc3 {[%clk 00:03:57]} {[%emt 00:00:26]} bxc3 {[%clk 00:05:16]} {[%emt
00:00:06]} 34. Nb4 {[%clk 00:03:49]} {[%emt 00:00:43]} Ke7 {[%clk 00:05:35]}
{[%emt 00:00:36]} 35. Rhh1 {[%clk 00:03:38]} {[%emt 00:00:14]} Nbd7 {[%clk
00:05:35]} {[%emt 00:00:37]} 36. Rd3 {[%clk 00:03:29]} {[%emt 00:00:29]} Nc5
{[%clk 00:05:57]} {[%emt 00:00:15]} 37. Re3 {[%clk 00:03:55]} {[%emt 00:00:24]}
Rb8 {[%clk 00:06:08]} 38. Nd3 {[%clk 00:03:45]} {[%emt 00:00:33]} Na6 {[%clk
00:05:24]} {[%emt 00:01:16]} 39. Nf2 {[%clk 00:02:53]} {[%emt 00:01:44]} Nc7
{[%clk 00:04:38]} {[%emt 00:00:52]} 40. Rxc3 {[%clk 00:02:20]} {[%emt
00:01:12]} Nb5 {[%clk 00:04:58]} 41. Re3 {[%clk 00:00:44]} {[%emt 00:02:06]}
Rhc8 {[%clk 00:05:22]} {[%emt 00:00:35]} 42. Ne2 {[%clk 00:26:44]} {[%emt
00:04:03]} Ba6 {[%clk 00:35:21]} {[%emt 00:00:30]} 43. c3 {[%clk 00:24:08]}
{[%emt 00:03:08]} Rc7 {[%clk 00:33:22]} {[%emt 00:02:36]} 44. Rc1 {[%clk
00:21:48]} {[%emt 00:02:40]} Na7 {[%clk 00:32:33]} {[%emt 00:01:19]} 45. Ng3
{[%clk 00:17:37]} {[%emt 00:04:44]} Rbc8 {[%clk 00:32:15]} {[%emt 00:00:46]} 46.
c4 {[%clk 00:16:47]} {[%emt 00:01:19]} Nc6 {[%clk 00:32:34]} {[%emt 00:00:10]}
47. Ne2 {[%clk 00:16:40]} {[%emt 00:00:39]} Nd7 {[%clk 00:32:28]} {[%emt
00:00:50]} 48. Nc3 {[%clk 00:14:55]} {[%emt 00:02:00]} Nb6 {[%clk 00:31:58]}
{[%emt 00:01:01]} 49. Be2 {[%clk 00:11:39]} {[%emt 00:03:45]} Nd4 {[%clk
00:32:05]} {[%emt 00:00:25]} 50. Bd3 {[%clk 00:11:57]} {[%emt 00:00:10]} Bb7
{[%clk 00:32:09]} {[%emt 00:00:27]} 51. Ne2 {[%clk 00:11:41]} {[%emt 00:00:43]}
Nd7 {[%clk 00:30:59]} {[%emt 00:01:49]} 52. Nxd4 {[%clk 00:11:07]} {[%emt
00:00:55]} exd4 {[%clk 00:31:26]} {[%emt 00:00:14]} 53. Rg3 {[%clk 00:10:12]}
{[%emt 00:01:15]} Ne5 {[%clk 00:31:15]} {[%emt 00:00:41]} 54. Re1 {[%clk
00:06:55]} {[%emt 00:04:10]} Rh8 {[%clk 00:30:47]} {[%emt 00:00:38]} 55. Be2
{[%clk 00:06:07]} {[%emt 00:01:15]} Kf6 {[%clk 00:29:32]} {[%emt 00:01:47]} 56.
Ng4+ {[%clk 00:04:36]} {[%emt 00:01:58]} Nxg4 {[%clk 00:29:57]} {[%emt
00:00:20]} 57. Bxg4 {[%clk 00:04:26]} {[%emt 00:00:26]} Ke5 {[%clk 00:29:39]}
{[%emt 00:00:50]} 58. Bf3 {[%clk 00:04:10]} {[%emt 00:00:46]} Kf4 {[%clk
00:28:44]} {[%emt 00:01:21]} 59. Rh3 {[%clk 00:04:36]} {[%emt 00:00:08]} Re7
{[%clk 00:28:50]} {[%emt 00:00:25]} 60. Kc2 {[%clk 00:03:40]} {[%emt 00:01:22]}
g5 {[%clk 00:25:45]} {[%emt 00:03:38]} 61. fxg6 {[%clk 00:03:17]} {[%emt
00:00:51]} fxg6 {[%clk 00:26:13]} {[%emt 00:00:20]} 62. Kd3 {[%clk 00:03:15]}
{[%emt 00:00:13]} g5 {[%clk 00:22:15]} {[%emt 00:04:31]} 63. Rf1 {[%clk
00:03:13]} {[%emt 00:00:30]} Bc8 {[%clk 00:22:35]} {[%emt 00:00:36]} 64. Bd1+
{[%clk 00:01:57]} {[%emt 00:01:21]} Ke5 {[%clk 00:22:52]} {[%emt 00:00:26]} 65.
Rg3 {[%clk 00:02:27]} Rg7 {[%clk 00:12:57]} {[%emt 00:10:11]} 66. Rh1 {[%clk
00:02:32]} {[%emt 00:00:24]} g4 {[%clk 00:13:02]} {[%emt 00:00:44]} 67. h6
{[%clk 00:02:55]} Rg5 {[%clk 00:12:41]} {[%emt 00:00:42]} 68. Rh4 {[%clk
00:03:01]} {[%emt 00:00:59]} d5 {[%clk 00:12:27]} {[%emt 00:00:08]} 69. exd5
{[%clk 00:02:44]} {[%emt 00:00:47]} Bf5+ {[%clk 00:12:25]} {[%emt 00:00:29]} 70.
Kd2 {[%clk 00:03:10]} {[%emt 00:00:10]} Bb1 {[%clk 00:12:34]} {[%emt 00:00:18]}
71. Kc1 {[%clk 00:02:25]} {[%emt 00:01:12]} Bf5 {[%clk 00:11:47]} {[%emt
00:01:17]} 72. Bxg4 {[%clk 00:01:37]} {[%emt 00:01:18]} Be4 {[%clk 00:09:39]}
{[%emt 00:02:39]} 73. b4 {[%clk 00:01:33]} {[%emt 00:00:37]} Rf8 {[%clk
00:09:00]} {[%emt 00:01:24]} 74. h7 {[%clk 00:01:43]} {[%emt 00:00:03]} Bxh7
{[%clk 00:08:29]} {[%emt 00:01:02]} 75. Rxh7 {[%clk 00:01:43]} {[%emt
00:00:27]} Rf2 {[%clk 00:08:55]} {[%emt 00:00:24]} 76. d6 {[%clk 00:01:24]}
{[%emt 00:00:30]} Rxa2 {[%clk 00:08:54]} {[%emt 00:00:31]} 77. d7 {[%clk
00:01:26]} {[%emt 00:00:28]} Rg8 {[%clk 00:09:08]} {[%emt 00:00:21]} 78. Re7+
{[%clk 00:01:38]} {[%emt 00:00:12]} Kf4 {[%clk 00:09:20]} {[%emt 00:00:18]} 79.
Re8 {[%clk 00:02:01]} {[%emt 00:00:09]} Ra1+ {[%clk 00:09:28]} {[%emt
00:00:31]} 80. Kd2 {[%clk 00:02:11]} {[%emt 00:00:10]} a2 {[%clk 00:08:40]}
{[%emt 00:01:18]} 81. Rxg8 {[%clk 00:02:17]} {[%emt 00:00:23]} Rd1+ {[%clk
00:08:36]} {[%emt 00:00:36]} 82. Bxd1 {[%clk 00:02:40]} {[%emt 00:00:05]} a1=Q
{[%clk 00:09:03]} {[%emt 00:00:21]} 83. Rf3+ {[%clk 00:02:59]} 1-0

[Event "Chess Festival Groningen 2023 | A"]
[Site "Groningen, Netherlands"]
[Date "2023.12.22"]
[Round "2.1"]
[White "Stremavicius, Pijus"]
[Black "Kazakouski, Valery"]
[Result "0-1"]
[TimeControl "90min/40moves + 30min + 30sec/move"]
[WhiteElo "2367"]
[BlackElo "2586"]

1. e4 {[%clk 01:30:57]} {[%emt 00:00:11]} e5 {[%clk 01:26:27]} {[%emt
00:04:26]} 2. Nf3 {[%clk 01:31:20]} {[%emt 00:00:19]} Nc6 {[%clk 01:26:51]} 3.
Nc3 {[%clk 01:31:47]} Nf6 {[%clk 01:26:55]} {[%emt 00:00:24]} 4. d4 {[%clk
01:32:13]} {[%emt 00:00:38]} Bb4 {[%clk 01:27:12]} {[%emt 00:00:04]} 5. Nxe5
{[%clk 01:32:36]} Bxc3+ {[%clk 01:27:06]} {[%emt 00:00:20]} 6. bxc3 {[%clk
01:33:00]} {[%emt 00:00:08]} Qe7 {[%clk 01:27:30]} {[%emt 00:00:04]} 7. Bd3
{[%clk 01:33:21]} {[%emt 00:00:22]} Nxe5 {[%clk 01:25:07]} {[%emt 00:02:37]} 8.
dxe5 {[%clk 01:33:46]} {[%emt 00:00:11]} Qxe5 {[%clk 01:25:22]} {[%emt
00:00:59]} 9. O-O {[%clk 01:34:12]} d6 {[%clk 01:21:11]} {[%emt 00:03:56]} 10.
Qe1 {[%clk 01:34:30]} {[%emt 00:00:15]} Bd7 {[%clk 01:13:37]} {[%emt 00:08:01]}
11. f4 {[%clk 01:33:38]} {[%emt 00:01:28]} Qe6 {[%clk 01:12:03]} {[%emt
00:02:00]} 12. e5 {[%clk 01:29:05]} {[%emt 00:05:01]} dxe5 {[%clk 01:05:52]}
{[%emt 00:06:40]} 13. fxe5 {[%clk 01:29:16]} {[%emt 00:00:26]} Nd5 {[%clk
01:04:18]} {[%emt 00:01:58]} 14. Qh4 {[%clk 01:22:31]} {[%emt 00:07:14]} h6
{[%clk 00:55:55]} {[%emt 00:08:53]} 15. c4 {[%clk 01:18:41]} {[%emt 00:04:20]}
Nb4 {[%clk 00:45:03]} {[%emt 00:11:35]} 16. Ba3 {[%clk 00:53:07]} {[%emt
00:26:24]} a5 {[%clk 00:37:51]} {[%emt 00:07:08]} 17. Kh1 {[%clk 00:52:32]}
{[%emt 00:01:13]} Qg4 {[%clk 00:34:28]} {[%emt 00:03:46]} 18. Qf2 {[%clk
00:52:38]} {[%emt 00:00:24]} O-O {[%clk 00:18:55]} {[%emt 00:16:03]} 19. Be2
{[%clk 00:52:22]} {[%emt 00:00:45]} Qe6 {[%clk 00:15:46]} {[%emt 00:03:39]} 20.
c3 {[%clk 00:52:37]} {[%emt 00:00:19]} Nc6 {[%clk 00:14:43]} {[%emt 00:01:30]}
21. Bxf8 {[%clk 00:53:00]} {[%emt 00:00:16]} Rxf8 {[%clk 00:15:06]} 22. Rae1
{[%clk 00:51:29]} {[%emt 00:02:01]} Nxe5 {[%clk 00:13:46]} {[%emt 00:01:48]} 23.
Qc5 {[%clk 00:50:53]} {[%emt 00:01:12]} b6 {[%clk 00:12:07]} {[%emt 00:02:03]}
24. Qxc7 {[%clk 00:49:12]} {[%emt 00:02:11]} Rc8 {[%clk 00:11:49]} {[%emt
00:01:02]} 25. Qa7 {[%clk 00:49:31]} {[%emt 00:00:05]} Bc6 {[%clk 00:10:03]}
{[%emt 00:02:07]} 26. Bf3 {[%clk 00:49:46]} {[%emt 00:00:23]} Bxf3 {[%clk
00:07:30]} {[%emt 00:03:04]} 27. Rxf3 {[%clk 00:49:54]} {[%emt 00:00:13]} Qd6
{[%clk 00:06:35]} {[%emt 00:01:25]} 28. Rff1 {[%clk 00:48:00]} {[%emt
00:02:26]} f6 {[%clk 00:05:37]} {[%emt 00:01:28]} 29. Rb1 {[%clk 00:48:13]}
{[%emt 00:00:22]} Ng4 {[%clk 00:05:22]} {[%emt 00:00:36]} 30. g3 {[%clk
00:48:01]} {[%emt 00:00:42]} Qd2 {[%clk 00:05:30]} {[%emt 00:00:22]} 0-1

[Event "Chess Festival Groningen 2023 | A"]
[Site "Groningen, Netherlands"]
[Date "2023.12.22"]
[Round "2.2"]
[White "Reinderman, Dimitri"]
[Black "Nagarkatte Vedant"]
[Result "1/2-1/2"]
[TimeControl "90min/40moves + 30min + 30sec/move"]
[WhiteElo "2580"]
[BlackElo "2320"]

1. c4 {[%clk 01:30:59]} e5 {[%clk 01:30:53]} {[%emt 00:00:22]} 2. Nc3 {[%clk
01:31:21]} Nf6 {[%clk 01:31:17]} {[%emt 00:00:08]} 3. Nf3 {[%clk 01:31:44]}
{[%emt 00:00:14]} Nc6 {[%clk 01:31:40]} 4. g3 {[%clk 01:32:09]} d5 {[%clk
01:31:54]} {[%emt 00:00:13]} 5. cxd5 {[%clk 01:32:31]} {[%emt 00:00:29]} Nxd5
{[%clk 01:32:17]} 6. Bg2 {[%clk 01:32:56]} Bc5 {[%clk 01:32:23]} {[%emt
00:00:14]} 7. Nxe5 {[%clk 01:31:18]} {[%emt 00:02:11]} Nxc3 {[%clk 01:32:44]}
{[%emt 00:00:09]} 8. bxc3 {[%clk 01:31:39]} {[%emt 00:00:09]} Nxe5 {[%clk
01:33:03]} {[%emt 00:00:10]} 9. d4 {[%clk 01:31:43]} {[%emt 00:00:43]} Bd6
{[%clk 01:33:29]} 10. dxe5 {[%clk 01:31:10]} {[%emt 00:00:48]} Bxe5 {[%clk
01:33:47]} {[%emt 00:00:38]} 11. O-O {[%clk 01:31:21]} Qxd1 {[%clk 01:30:37]}
{[%emt 00:03:38]} 12. Rxd1 {[%clk 01:31:47]} O-O {[%clk 01:21:18]} {[%emt
00:09:46]} 13. Rb1 {[%clk 01:31:04]} {[%emt 00:01:18]} c6 {[%clk 01:21:42]}
{[%emt 00:00:05]} 14. c4 {[%clk 01:29:58]} {[%emt 00:01:34]} Re8 {[%clk
01:07:06]} {[%emt 00:15:06]} 15. Be3 {[%clk 01:24:48]} {[%emt 00:05:39]} Bc7
{[%clk 00:56:50]} {[%emt 00:10:45]} 16. Kf1 {[%clk 01:21:20]} {[%emt 00:03:59]}
Bb6 {[%clk 00:55:51]} {[%emt 00:01:29]} 17. c5 {[%clk 01:18:20]} {[%emt
00:03:48]} Bc7 {[%clk 00:55:10]} {[%emt 00:00:52]} 18. Bd4 {[%clk 01:18:03]}
{[%emt 00:00:47]} Rb8 {[%clk 00:54:52]} {[%emt 00:00:58]} 19. Rb2 {[%clk
01:10:19]} {[%emt 00:08:05]} Rd8 {[%clk 00:47:48]} {[%emt 00:07:35]} 20. e3
{[%clk 01:10:05]} {[%emt 00:00:48]} Be6 {[%clk 00:27:39]} {[%emt 00:20:33]} 21.
Rc1 {[%clk 01:09:50]} {[%emt 00:00:53]} f6 {[%clk 00:23:40]} {[%emt 00:04:24]}
22. f4 {[%clk 01:04:25]} {[%emt 00:05:51]} Bd5 {[%clk 00:22:15]} {[%emt
00:01:54]} 23. Bxd5+ {[%clk 00:59:43]} {[%emt 00:05:13]} Rxd5 {[%clk 00:22:31]}
{[%emt 00:00:22]} 24. Ke2 {[%clk 01:00:05]} {[%emt 00:00:27]} Bd8 {[%clk
00:22:12]} {[%emt 00:00:23]} 25. Rc3 {[%clk 00:57:29]} {[%emt 00:03:09]} Rd7
{[%clk 00:19:01]} {[%emt 00:03:38]} 26. g4 {[%clk 00:53:29]} {[%emt 00:04:30]}
Be7 {[%clk 00:15:24]} {[%emt 00:04:26]} 27. Rc4 {[%clk 00:47:13]} {[%emt
00:06:26]} Kf7 {[%clk 00:13:43]} {[%emt 00:02:17]} 28. Ra4 {[%clk 00:45:37]}
{[%emt 00:02:24]} Ra8 {[%clk 00:14:06]} {[%emt 00:00:08]} 29. Kf3 {[%clk
00:45:07]} {[%emt 00:00:58]} h6 {[%clk 00:07:28]} {[%emt 00:06:43]} 30. h4
{[%clk 00:44:21]} {[%emt 00:01:17]} a6 {[%clk 00:06:48]} {[%emt 00:01:10]} 31.
Rc4 {[%clk 00:43:39]} {[%emt 00:01:14]} Re8 {[%clk 00:06:27]} {[%emt 00:00:48]}
32. e4 {[%clk 00:39:43]} {[%emt 00:04:27]} Red8 {[%clk 00:04:44]} {[%emt
00:02:12]} 33. Be3 {[%clk 00:39:55]} {[%emt 00:00:18]} Rd3 {[%clk 00:03:54]}
{[%emt 00:01:23]} 34. Ke2 {[%clk 00:38:07]} {[%emt 00:02:15]} Ra3 {[%clk
00:01:03]} {[%emt 00:03:28]} 35. Bf2 {[%clk 00:37:44]} {[%emt 00:00:46]} Rd7
{[%clk 00:01:14]} {[%emt 00:00:46]} 1/2-1/2

[Event "Chess Festival Groningen 2023 | A"]
[Site "Groningen, Netherlands"]
[Date "2023.12.22"]
[Round "2.3"]
[White "Sanket Chakravarty"]
[Black "Romanov, Evgeny"]
[Result "0-1"]
[TimeControl "90min/40moves + 30min + 30sec/move"]
[WhiteElo "2361"]
[BlackElo "2561"]

1. c4 {[%clk 01:30:56]} {[%emt 00:00:09]} e6 {[%clk 01:26:57]} {[%emt
00:03:36]} 2. Nf3 {[%clk 01:30:48]} {[%emt 00:00:38]} d5 {[%clk 01:27:11]}
{[%emt 00:00:46]} 3. e3 {[%clk 01:30:44]} {[%emt 00:00:04]} Nf6 {[%clk
01:27:08]} {[%emt 00:00:33]} 4. Nc3 {[%clk 01:30:55]} {[%emt 00:00:40]} b6
{[%clk 01:27:00]} {[%emt 00:00:18]} 5. cxd5 {[%clk 01:26:52]} {[%emt 00:04:53]}
exd5 {[%clk 01:26:22]} {[%emt 00:00:50]} 6. d4 {[%clk 01:26:58]} {[%emt
00:00:44]} Bd6 {[%clk 01:24:39]} {[%emt 00:01:53]} 7. Ne5 {[%clk 01:21:24]}
{[%emt 00:06:01]} O-O {[%clk 01:22:58]} {[%emt 00:02:17]} 8. Bd3 {[%clk
01:20:47]} {[%emt 00:01:23]} c5 {[%clk 01:18:42]} {[%emt 00:04:25]} 9. O-O
{[%clk 01:17:30]} {[%emt 00:04:24]} Bb7 {[%clk 01:18:43]} {[%emt 00:00:08]} 10.
Nb5 {[%clk 01:10:45]} {[%emt 00:06:58]} Be7 {[%clk 01:16:39]} {[%emt 00:03:10]}
11. dxc5 {[%clk 01:10:09]} {[%emt 00:00:29]} bxc5 {[%clk 01:15:30]} {[%emt
00:01:39]} 12. b3 {[%clk 01:09:56]} {[%emt 00:00:45]} Nbd7 {[%clk 00:57:07]}
{[%emt 00:19:30]} 13. Bb2 {[%clk 00:59:20]} {[%emt 00:10:27]} a6 {[%clk
00:56:38]} {[%emt 00:01:02]} 14. Nxd7 {[%clk 00:59:24]} {[%emt 00:00:51]} Qxd7
{[%clk 00:57:02]} 15. Nc3 {[%clk 00:59:41]} d4 {[%clk 00:55:49]} {[%emt
00:01:35]} 16. exd4 {[%clk 00:55:19]} {[%emt 00:05:19]} cxd4 {[%clk 00:54:46]}
{[%emt 00:01:04]} 17. Ne2 {[%clk 00:55:24]} {[%emt 00:00:28]} Qd5 {[%clk
00:54:08]} {[%emt 00:01:09]} 18. f3 {[%clk 00:54:50]} {[%emt 00:01:05]} Bc5
{[%clk 00:51:46]} {[%emt 00:02:51]} 19. Rc1 {[%clk 00:52:25]} {[%emt 00:03:00]}
Rad8 {[%clk 00:50:48]} {[%emt 00:01:21]} 20. Kh1 {[%clk 00:51:22]} {[%emt
00:01:34]} Qe5 {[%clk 00:42:44]} {[%emt 00:08:31]} 21. Ng3 {[%clk 00:46:27]}
{[%emt 00:05:27]} Bb6 {[%clk 00:32:01]} {[%emt 00:11:11]} 22. Re1 {[%clk
00:45:21]} {[%emt 00:01:36]} Qf4 {[%clk 00:31:00]} {[%emt 00:01:30]} 23. Rc4
{[%clk 00:41:02]} {[%emt 00:05:10]} Rfe8 {[%clk 00:27:19]} {[%emt 00:04:29]} 24.
Rxe8+ {[%clk 00:34:58]} {[%emt 00:05:55]} Rxe8 {[%clk 00:27:08]} {[%emt
00:01:16]} 25. Ne2 {[%clk 00:32:50]} {[%emt 00:02:02]} Bxf3 {[%clk 00:24:50]}
{[%emt 00:02:51]} 26. Nxf4 {[%clk 00:22:13]} {[%emt 00:11:04]} Bxd1 {[%clk
00:24:39]} {[%emt 00:01:17]} 27. h3 {[%clk 00:22:29]} g5 {[%clk 00:15:39]}
{[%emt 00:09:08]} 28. Rc6 {[%clk 00:22:04]} {[%emt 00:00:58]} Nd7 {[%clk
00:15:39]} {[%emt 00:00:55]} 29. Nd5 {[%clk 00:21:22]} {[%emt 00:00:43]} Re1+
{[%clk 00:11:08]} {[%emt 00:05:22]} 30. Kh2 {[%clk 00:21:45]} {[%emt 00:00:09]}
Ba7 {[%clk 00:11:33]} 31. Kg3 {[%clk 00:16:52]} {[%emt 00:05:33]} Ne5 {[%clk
00:04:18]} {[%emt 00:07:17]} 32. Nf6+ {[%clk 00:15:38]} {[%emt 00:01:44]} Kg7
{[%clk 00:02:16]} {[%emt 00:02:32]} 33. Ne8+ {[%clk 00:15:23]} {[%emt
00:00:47]} Kh8 {[%clk 00:01:36]} {[%emt 00:01:07]} 34. Rc8 {[%clk 00:05:55]}
{[%emt 00:10:12]} Nxd3 {[%clk 00:01:48]} {[%emt 00:00:17]} 35. Ba3 {[%clk
00:06:21]} {[%emt 00:00:10]} h5 {[%clk 00:01:05]} {[%emt 00:00:54]} 36. Bd6
{[%clk 00:02:52]} {[%emt 00:04:01]} h4+ {[%clk 00:00:44]} {[%emt 00:00:53]} 37.
Kh2 {[%clk 00:03:19]} Nf2 {[%clk 00:00:56]} {[%emt 00:00:16]} 38. g4 {[%clk
00:03:31]} {[%emt 00:00:17]} hxg3+ {[%clk 00:00:48]} {[%emt 00:00:40]} 39. Bxg3
{[%clk 00:03:46]} {[%emt 00:00:14]} Re2 {[%clk 00:01:04]} {[%emt 00:00:32]} 40.
Nd6+ {[%clk 00:02:16]} {[%emt 00:01:42]} Kh7 {[%clk 00:01:13]} {[%emt
00:00:23]} 0-1